{"text_format":"1","workbook":"xlsx","n_sheets":2,"sheets":["Příklady","Zadání"],"not_rendered":{"charts":0,"images":0,"macros":1,"external_links":0,"defined_names":0,"comments":0,"pivot_tables":0},"unopened":[],"bounds":{"document_bytes":16777216,"sheet_cells":100000,"rows_first":2000,"rows_last":500,"rows_between":2000,"halvings":0,"cell_chars":16384,"cell_head_chars":4096},"cells_cut":0,"cells_raw":0,"read":"whole","date_system":"1900"}

{"sheet":"Příklady","index":0,"n_rows":15,"n_cols":13,"rows_kept":15,"cut":false,"hidden":false,"merged":[[1,2,2,4],[11,2,12,2],[9,2,10,2],[9,8,12,8],[9,10,12,10],[9,9,12,9],[14,12,14,13],[9,12,12,12],[3,3,4,3],[5,3,6,3],[9,3,10,3],[11,3,12,3],[9,4,10,7],[11,4,12,7],[3,12,3,13]]}
[]
[null,null,"Peníze na cestě"]
[]
[null,null,null,"Další otázka",null,null,null,null,null,null,null,null,{"$f":"IF(C12=14,\"Konec testu\",\"\")","v":""}]
[]
[null,null,null,"Předchozí otázka"]
[]
[]
[null,null,null,null,null,null,null,null,"MD",null,"D"]
["/",null,"Otázka","Účetní doklad:",{"$f":"VLOOKUP(C12,Zadání!A:C,2,FALSE)","v":"VBÚ (výpis z běžného účtu)"},null,null,null,{"$f":"Zadání!G2","v":221},"/",{"$f":"Zadání!H2","v":261},null,{"$f":"IF(AND(I10=Zadání!$G$2,Příklady!K10=Zadání!$H$2),\"Správná odpověď\",IF(AND(I10=Zadání!$G$3,Příklady!$K$10=Zadání!$H$3),\"\",IF(AND(Příklady!I10=Zadání!$G$2,Příklady!K10=Zadání!$H$3),\"\",IF(AND(I10=Zadání!$G$3,Příklady!$K$10=Zadání!$H$2),\"\",\"Chyba\"))))","v":"Správná odpověď"}]
[]
[null,null,1,"Účetní případ:",{"$f":"VLOOKUP(C12,Zadání!A:C,3,FALSE)","v":"Odvod peněz z pokladny na běžný účet"}]
[]
[]
[null,"V případě zájmu o další výukový materiál nebo doučování piš či volej: 603 723 846, marketazel@gmail.com",null,null,null,null,null,null,null,null,null,null,"Účetnictví Markéta"]

{"sheet":"Zadání","index":1,"n_rows":60,"n_cols":15,"rows_kept":60,"cut":false,"hidden":false,"merged":[[0,11,0,12],[0,6,0,7]]}
["Otázka","Doklad","Zadání",null,null,null,"Řešení",null,null,"Hodnoty",null,"Náhodný výběr"]
[5,"VPD (výdajový pokladní doklad) ","Odvod peněz z pokladny na běžný účet ",261,211,null,{"$f":"VLOOKUP(Příklady!C12,Zadání!A:F,4,FALSE)","v":221},{"$f":"VLOOKUP(Příklady!C12,Zadání!A:F,5,FALSE)","v":261},null,{"$f":"M2","v":2},null,{"$f":"RAND()","v":0.91563848801051861},{"$f":"RANK(L2,$L$2:$L$15)","v":2},null,1]
[1,"VBÚ (výpis z běžného účtu)","Odvod peněz z pokladny na běžný účet",221,261,null,null,null,null,{"$f":"M3","v":7},null,{"$f":"RAND()","v":0.61228661774064785},{"$f":"RANK(L3,$L$2:$L$15)","v":7}]
[12,"PPD (příjmový pokladní doklad)","Odvod peněz z běžného účtu do pokladny",211,261,null,null,null,null,14,null,4.0168020669676174E-2,14]
[9,"VBÚ (výpis z běžného účtu)","Odvod peněz z běžného účtu do pokladny",261,221,null,null,null,null,5,null,0.66431869528204235,5]
[14,"VBÚ (výpis z běžného účtu)","Přijetí krátkodobého úvěru ",221,261,null,null,null,null,1,null,0.96977107573451526,1]
[2,"VÚÚ (výpis z úvěrového účtu)","Přijetí krátkodobého úvěru ",261,231,null,null,null,null,12,null,0.20860198236787397,12]
[8,"VBÚ (výpis z běžného účtu)","Přijetí dlouhodobého úvěru ",221,261,null,null,null,null,9,null,0.51405698530351907,9]
[13,"VÚÚ (výpis z úvěrového účtu)","Přijetí dlouhodobého úvěru ",261,461,null,null,null,null,6,null,0.62124038169540796,6]
[6,"VBÚ (výpis z běžného účtu)","Splátka krátkodobého úvěru ",261,221,null,null,null,null,10,null,{"$f":"RAND()","v":0.36025114458833984},10]
[7,"VÚÚ (výpis z úvěrového účtu)","Splátka krátkodobého úvěru ",231,261,null,null,null,null,8,null,0.54548196463016563,8]
[4,"VBÚ (výpis z běžného účtu)","Splátka dlouhodobého úvěru ",261,221,null,null,null,null,3,null,0.82950327444804817,3]
[11,"VÚÚ (výpis z úvěrového účtu)","Splátka dlouhodobéhoo úvěru ",461,261,null,null,null,null,4,null,0.68108117392625211,4]
[3,"PPD (příjmový pokladní doklad)","Výběr pěnez z bankovního účtu ",211,261,null,null,null,null,13,null,8.2077800505852672E-2,13]
[10,"VBÚ (výpis z běžného účtu)","Výběr pěnez z bankovního účtu ",261,221,null,null,null,null,11,null,0.27548086453452147,11]
[0,null,null,null,null,null,null,null,null,0]
[0,null,null,null,null,null,null,null,null,0]
[0,null,null,null,null,null,null,null,null,0]
[0,null,null,null,null,null,null,null,null,0]
[0,null,null,null,null,null,null,null,null,0]
[0,null,null,null,null,null,null,null,null,0]
[0,null,null,null,null,null,null,null,null,0]
[0,null,null,null,null,null,null,null,null,0]
[0,null,null,null,null,null,null,null,null,0]
[0,null,null,null,null,null,null,null,null,0]
[0,null,null,null,null,null,null,null,null,0]
[0,null,null,null,null,null,null,null,null,0]
[0,null,null,null,null,null,null,null,null,0]
[0,null,null,null,null,null,null,null,null,0]
[0,null,null,null,null,null,null,null,null,0]
[0,null,null,null,null,null,null,null,null,0]
[0,null,null,null,null,null,null,null,null,0]
[0,null,null,null,null,null,null,null,null,0]
[0,null,null,null,null,null,null,null,null,0]
[0,null,null,null,null,null,null,null,null,0]
[0,null,null,null,null,null,null,null,null,0]
[0,null,null,null,null,null,null,null,null,0]
[0,null,null,null,null,null,null,null,null,0]
[0,null,null,null,null,null,null,null,null,0]
[0,null,null,null,null,null,null,null,null,0]
[0,null,null,null,null,null,null,null,null,0]
[0,null,null,null,null,null,null,null,null,0]
[0,null,null,null,null,null,null,null,null,0]
[0,null,null,null,null,null,null,null,null,0]
[0,null,null,null,null,null,null,null,null,0]
[0,null,null,null,null,null,null,null,null,0]
[0,null,null,null,null,null,null,null,null,0]
[0,null,null,null,null,null,null,null,null,0]
[0,null,null,null,null,null,null,null,null,0]
[0,null,null,null,null,null,null,null,null,0]
[0,null,null,null,null,null,null,null,null,0]
[0,null,null,null,null,null,null,null,null,0]
[0,null,null,null,null,null,null,null,null,0]
[0,null,null,null,null,null,null,null,null,0]
[0,null,null,null,null,null,null,null,null,0]
[0,null,null,null,null,null,null,null,null,0]
[0,null,null,null,null,null,null,null,null,0]
[0,null,null,null,null,null,null,null,null,0]
[0,null,null,null,null,null,null,null,null,0]
[0,null,null,null,null,null,null,null,null,0]